fUST/lending_fUST_20250605
["ID","MTS","AMOUNT","RATE_DAILY","PERIOD"]
[364492152,1749120649006,-440.0,0.00020821,2]
[364492154,1749120649016,-440.0,0.00020821,2]
[364492156,1749120649026,-563.4,0.00020821,2]
[364492158,1749120649035,-1603.39,0.00020821,2]
[364492160,1749120649044,-440.0,0.00020821,2]
[364492162,1749120649053,-1735.19,0.00020821,2]
[364492164,1749120649063,-440.0,0.00020821,2]
[364492166,1749120649072,-609.58,0.00020821,2]
[364492168,1749120649081,-1074.21,0.00020821,2]
[364492170,1749120649090,-440.0,0.00020821,2]
[364492172,1749120649100,-583.66,0.00020821,2]
[364492174,1749120649109,-1078.73,0.00020821,2]
[364492176,1749120649118,-440.0,0.00020821,2]
[364492178,1749120649128,-440.0,0.00020821,2]
[364492179,1749120649137,-440.0,0.00020821,2]
[364492181,1749120649146,-440.0,0.00020821,2]
[364492183,1749120649155,-440.0,0.00020821,2]
[364492185,1749120649165,-948.08,0.00020821,2]
[364492187,1749120649175,-440.0,0.00020821,2]
[364492189,1749120649184,-440.0,0.00020821,2]
[364492191,1749120649193,-440.0,0.00020821,2]
[364492193,1749120649203,-807.25,0.00020821,2]
[364492195,1749120649212,-440.0,0.00020821,2]
[364492197,1749120649222,-327.42,0.00020821,2]
[364492199,1749120649233,-454.64,0.00020821,2]
[364492201,1749120649243,-1149.08,0.00020821,2]
[364492203,1749120649254,-440.0,0.00020821,2]
[364492205,1749120649263,-631.36,0.00020821,2]
[364492207,1749120649272,-1087.02,0.00020821,2]
[364492209,1749120649281,-2091.84,0.00020821,2]
[364492211,1749120649290,-440.0,0.00020821,2]
[364492213,1749120649303,-1507.63,0.00020821,2]
[364492215,1749120649313,-440.0,0.00020821,2]
[364492217,1749120649323,-440.0,0.00020821,2]
[364492219,1749120649332,-440.0,0.00020821,2]
[364492221,1749120649343,-5810.0,0.00020896,2]
[364492223,1749120649352,-151.0,0.0002099,2]
[364492225,1749120649361,-151.0,0.0002099,2]
[364492227,1749120649371,-200.454904,0.0002099,2]
[364492229,1749120649380,-200.454904,0.0002099,2]
[364492231,1749120649391,-500.0,0.00020993,2]
[364492233,1749120649400,-501.09580603,0.00020993,2]
[364492235,1749120649409,-1000.0,0.00021,21]
[364492236,1749120649418,-501.14564429,0.00021029,2]
[364492237,1749120649427,-500.0,0.00021029,2]
[364492238,1749120649437,-500.0,0.00021029,2]
[364492239,1749120649446,-1841.71774051,0.00021038,4]
[364492240,1749120649455,-375.19752,0.00021038,2]
[364492241,1749120649465,-375.19752,0.00021038,2]
[364492242,1749120649474,-151.0,0.00021038,2]
[364492243,1749120649483,-295.714324,0.00021038,2]
[364492244,1749120649492,-500.0,0.00021041,2]
[364492245,1749120649501,-500.0,0.00021041,2]
[364492246,1749120649511,-775.969262,0.00021069,3]
[364492247,1749120649520,-2619.24,0.00021094,2]
[364492248,1749120649529,-907.14,0.00021094,2]
[364492250,1749120649538,-210.732742,0.00021095,2]
[364492252,1749120649547,-210.732738,0.00021095,2]
[364492254,1749120649557,-440.0,0.00021095,2]
[364492256,1749120649566,-440.0,0.00021095,2]
[364492258,1749120649575,-440.0,0.00021095,2]
[364492260,1749120649585,-440.0,0.00021095,2]
[364492262,1749120649595,-527.33331253,0.00021095,2]
[364492264,1749120649604,-440.0,0.00021095,2]
[364492265,1749120649613,-440.0,0.00021095,2]
[364492268,1749120649623,-440.0,0.00021095,2]
[364492270,1749120649633,-2371.35,0.00021095,2]
[364492271,1749120649643,-440.0,0.00021095,2]
[364492273,1749120649652,-440.0,0.00021095,2]
[364492275,1749120649661,-515.48,0.00021095,2]
[364492278,1749120649671,-440.0,0.00021095,2]
[364492280,1749120649680,-440.0,0.00021095,2]
[364492282,1749120649689,-440.0,0.00021095,2]
[364492284,1749120649699,-449.69,0.00021095,2]
[364492286,1749120649708,-440.0,0.00021095,2]
[364492288,1749120649717,-2621.04,0.00021095,2]
[364492290,1749120649726,-440.0,0.00021095,2]
[364492292,1749120649736,-440.0,0.00021095,2]
[364492294,1749120649745,-563.4,0.00021095,2]
[364492296,1749120649755,-1603.39,0.00021095,2]
[364492298,1749120649764,-440.0,0.00021095,2]
[364492300,1749120649772,-1735.19,0.00021095,2]
[364492302,1749120649782,-440.0,0.00021095,2]
[364492304,1749120649791,-609.58,0.00021095,2]
[364492306,1749120649801,-1074.21,0.00021095,2]
[364492308,1749120649810,-440.0,0.00021095,2]
[364492310,1749120649819,-583.66,0.00021095,2]
[364492312,1749120649828,-1078.73,0.00021095,2]
[364492314,1749120649838,-440.0,0.00021095,2]
[364492316,1749120649847,-440.0,0.00021095,2]
[364492318,1749120649857,-561.94793586,0.00021095,2]
[364492320,1749120649866,-440.0,0.00021095,2]
[364492321,1749120649875,-440.0,0.00021095,2]
[364492323,1749120649884,-948.08,0.00021095,2]
[364492325,1749120649893,-440.0,0.00021095,2]
[364492327,1749120649903,-440.0,0.00021095,2]
[364492329,1749120649912,-360.0,0.00021095,2]
[364492331,1749120649921,-807.25,0.00021095,2]
[364492333,1749120649930,-440.0,0.00021095,2]
[364492335,1749120649939,-454.64,0.00021095,2]
[364492337,1749120649948,-1149.08,0.00021095,2]
[364492339,1749120649958,-440.0,0.00021095,2]
[364492341,1749120649967,-631.36,0.00021095,2]
[364492343,1749120649976,-1087.02,0.00021095,2]
[364492345,1749120649986,-2091.84,0.00021095,2]
[364492347,1749120649997,-440.0,0.00021095,2]
[364492349,1749120650006,-1507.63,0.00021095,2]
[364492351,1749120650016,-440.0,0.00021095,2]
[364492353,1749120650025,-440.0,0.00021095,2]
[364492355,1749120650034,-440.0,0.00021095,2]
[364492357,1749120650043,-151.0,0.000211,4]
[364492359,1749120650052,-10000.0,0.00021142,2]
[364492361,1749120650062,-615.078262,0.00021142,2]
[364492363,1749120650071,-615.078257,0.00021142,2]
[364492365,1749120650080,-900.0,0.00021164,2]
[364492375,1749120650161,-587.0,0.00021205,2]
[364492377,1749120650172,-157.76505856,0.0002121,2]
[364492379,1749120650183,-240.42192,0.00021213,2]
[364492381,1749120650192,-962.0,0.00021213,2]
[364492383,1749120650201,-2225.0,0.00021213,2]
[364492385,1749120650210,-709.0,0.00021213,2]
[364492387,1749120650220,-405.0,0.00021213,2]
[364492389,1749120650230,-1841.71774051,0.00021279,5]
[364492391,1749120650239,-273.2,0.000213,2]
[364492393,1749120650248,-2500.0,0.00021364,2]
[364492395,1749120650258,-2619.24,0.00021368,2]
[364492397,1749120650267,-907.14,0.00021368,2]
[364492399,1749120650276,-375.19752,0.00021369,2]
[364492401,1749120650285,-375.19751192,0.00021369,2]
[364492403,1749120650295,-151.0,0.00021369,2]
[364492405,1749120650306,-440.0,0.00021369,2]
[364492407,1749120650315,-440.0,0.00021369,2]
[364492409,1749120650324,-440.0,0.00021369,2]
[364492411,1749120650333,-440.0,0.00021369,2]
[364492413,1749120650343,-440.0,0.00021369,2]
[364492415,1749120650355,-440.0,0.00021369,2]
[364492417,1749120650365,-440.0,0.00021369,2]
[364492419,1749120650375,-2371.35,0.00021369,2]
[364492421,1749120650388,-440.0,0.00021369,2]
[364492423,1749120650398,-361.58406986,0.00021369,2]
[364492425,1749120650408,-515.48,0.00021369,2]
[364492427,1749120650417,-440.0,0.00021369,2]
[364492429,1749120650427,-440.0,0.00021369,2]
[364492431,1749120650436,-440.0,0.00021369,2]
[364492433,1749120650446,-449.69,0.00021369,2]
[364492435,1749120650455,-440.0,0.00021369,2]
[364492437,1749120650464,-2621.04,0.00021369,2]
[364492439,1749120650474,-440.0,0.00021369,2]
[364492441,1749120650485,-370.0,0.00021369,2]
[364492443,1749120650495,-563.4,0.00021369,2]
[364492445,1749120650504,-1603.39,0.00021369,2]
[364492447,1749120650513,-440.0,0.00021369,2]
[364492449,1749120650523,-1735.19,0.00021369,2]
[364492451,1749120650532,-440.0,0.00021369,2]
[364492453,1749120650541,-609.58,0.00021369,2]
[364492455,1749120650550,-1074.21,0.00021369,2]
[364492457,1749120650559,-440.0,0.00021369,2]
[364492460,1749120650570,-583.66,0.00021369,2]
[364492462,1749120650579,-1078.73,0.00021369,2]
[364492464,1749120650588,-440.0,0.00021369,2]
[364492466,1749120650598,-440.0,0.00021369,2]
[364492468,1749120650607,-440.0,0.00021369,2]
[364492469,1749120650616,-440.0,0.00021369,2]
[364492471,1749120650625,-948.08,0.00021369,2]
[364492474,1749120650635,-440.0,0.00021369,2]
[364492475,1749120650643,-442.55,0.00021369,2]
[364492477,1749120650653,-807.25,0.00021369,2]
[364492479,1749120650662,-440.0,0.00021369,2]
[364492481,1749120650671,-454.64,0.00021369,2]
[364492483,1749120650680,-1149.08,0.00021369,2]
[364492485,1749120650689,-440.0,0.00021369,2]
[364492487,1749120650698,-631.36,0.00021369,2]
[364492489,1749120650707,-1087.02,0.00021369,2]
[364492491,1749120650716,-2091.84,0.00021369,2]
[364492493,1749120650725,-440.0,0.00021369,2]
[364492495,1749120650736,-1507.63,0.00021369,2]
[364492497,1749120650745,-440.0,0.00021369,2]
[364492499,1749120650754,-440.0,0.00021369,2]
[364492501,1749120650763,-440.0,0.00021369,2]
[364492503,1749120650772,-160.0,0.0002139,3]
[364492505,1749120650781,-273.2,0.000214,2]
[364492507,1749120650791,-151.0,0.000214,3]
[364492509,1749120650800,-4447.99911634,0.000214,2]
[364492511,1749120650809,-587.0,0.00021425,2]
[364492513,1749120650818,-159.70787945,0.00021499,2]
[364492515,1749120650828,-3000.0,0.000215,2]
[364492517,1749120650837,-151.0,0.000215,2]
[364492519,1749120650847,-151.0,0.000215,2]
[364492521,1749120650856,-1000.0,0.000215,5]
[364492523,1749120650865,-3000.0,0.0002151,2]
[364492525,1749120650875,-212477.06275,0.0002152,2]
[364492527,1749120650884,-3000.0,0.0002152,2]
[364492529,1749120650893,-1841.71774051,0.00021521,5]
[364492532,1749120650904,-3000.0,0.0002153,2]
[364492534,1749120650913,-151.0,0.0002153,2]
[364492536,1749120650922,-151.0,0.0002153,2]
[364492538,1749120650931,-200.454904,0.0002153,2]
[364492540,1749120650940,-200.454904,0.0002153,2]
[364492542,1749120650950,-3000.0,0.0002154,2]
[364492543,1749120650959,-500.95666709,0.00021541,2]
[364492546,1749120650970,-3000.0,0.0002155,2]
[364492548,1749120650980,-3000.0,0.0002156,2]
[364492550,1749120650989,-3000.0,0.0002157,2]
[364492552,1749120650998,-503.35022424,0.00021577,2]
[364492554,1749120651008,-304.63792749,0.00021577,2]
[364492556,1749120651018,-3000.0,0.0002158,2]
[364492558,1749120651027,-808.1561612,0.00021589,2]
[364492560,1749120651037,-1000.0,0.00021589,2]
[364492562,1749120651046,-3000.0,0.0002159,2]
[364492563,1749120651055,-3000.0,0.000216,2]
[364492565,1749120651065,-3000.0,0.0002161,2]
[364492568,1749120651076,-3000.0,0.0002162,2]
[364492570,1749120651085,-7604.02,0.00021627,2]
[364492572,1749120651095,-3000.0,0.0002163,2]
[364492574,1749120651104,-3000.0,0.0002164,2]
[364492576,1749120651113,-2619.24,0.00021642,2]
[364492578,1749120651122,-907.14,0.00021642,2]
[364492580,1749120651131,-151.0,0.00021643,2]
[364492582,1749120651141,-372.675742,0.00021643,2]
[364492584,1749120651150,-440.0,0.00021643,2]
[364492586,1749120651159,-440.0,0.00021643,2]
[364492588,1749120651169,-440.0,0.00021643,2]
[364492590,1749120651179,-440.0,0.00021643,2]
[364492591,1749120651189,-440.0,0.00021643,2]
[364492594,1749120651199,-440.0,0.00021643,2]
[364492595,1749120651208,-440.0,0.00021643,2]
[364492597,1749120651217,-2371.35,0.00021643,2]
[364492600,1749120651227,-440.0,0.00021643,2]
[364492602,1749120651237,-515.48,0.00021643,2]
[364492604,1749120651246,-440.0,0.00021643,2]
[364492606,1749120651255,-440.0,0.00021643,2]
[364492608,1749120651265,-440.0,0.00021643,2]
[364492610,1749120651275,-449.69,0.00021643,2]
[364492611,1749120651284,-440.0,0.00021643,2]
[364492614,1749120651294,-2621.04,0.00021643,2]
[364492615,1749120651306,-440.0,0.00021643,2]
[364492617,1749120651315,-563.4,0.00021643,2]
[364492619,1749120651325,-1603.39,0.00021643,2]
[364492621,1749120651334,-440.0,0.00021643,2]
[364492623,1749120651343,-1735.19,0.00021643,2]
[364492625,1749120651354,-440.0,0.00021643,2]
[364492628,1749120651367,-609.58,0.00021643,2]
[364492630,1749120651384,-1074.21,0.00021643,2]
[364492631,1749120651394,-440.0,0.00021643,2]
[364492634,1749120651403,-583.66,0.00021643,2]
[364492636,1749120651413,-1078.73,0.00021643,2]
[364492644,1749120651490,-440.0,0.00021643,2]
[364492647,1749120651500,-440.0,0.00021643,2]
[364492649,1749120651510,-440.0,0.00021643,2]
[364492650,1749120651519,-189.64832882,0.00021643,2]
[364492653,1749120651529,-948.08,0.00021643,2]
[364492654,1749120651538,-440.0,0.00021643,2]
[364492656,1749120651548,-807.25,0.00021643,2]
[364492659,1749120651558,-440.0,0.00021643,2]
[364492661,1749120651567,-454.64,0.00021643,2]
[364492663,1749120651579,-1149.08,0.00021643,2]
[364492664,1749120651588,-440.0,0.00021643,2]
[364492666,1749120651598,-631.36,0.00021643,2]
[364492668,1749120651607,-1087.02,0.00021643,2]
[364492670,1749120651616,-2091.84,0.00021643,2]
[364492673,1749120651627,-440.0,0.00021643,2]
[364492675,1749120651637,-1507.63,0.00021643,2]
[364492677,1749120651646,-440.0,0.00021643,2]
[364492679,1749120651655,-440.0,0.00021643,2]
[364492680,1749120651665,-440.0,0.00021643,2]
[364492683,1749120651675,-3000.0,0.0002165,2]
[364492685,1749120651684,-3000.0,0.0002166,2]
[364492687,1749120651694,-151.0,0.0002166,2]
[364492688,1749120651703,-206.71287,0.0002166,2]
[364492690,1749120651712,-200.454904,0.0002166,2]
[364492692,1749120651722,-200.454904,0.0002166,2]
[364492694,1749120651731,-3000.0,0.0002167,2]
[364492696,1749120651741,-3000.0,0.0002168,2]
[364492698,1749120651750,-1308.71534771,0.0002169,2]
[364492733,1749120652096,-5000.0,0.00018172,2]
[364492735,1749120652107,-257.63347768,0.00018256,2]
[364492737,1749120652116,-440.0,0.00018356,2]
[364492739,1749120652126,-440.0,0.00018356,2]
[364492741,1749120652136,-440.0,0.0001863,2]
[364492743,1749120652145,-440.0,0.0001863,2]
[364492745,1749120652154,-440.0,0.00018904,2]
[364492747,1749120652163,-440.0,0.00019178,2]
[364492749,1749120652172,-406.0,0.00019205,2]
[364492751,1749120652181,-485.0,0.00019384,2]
[364492753,1749120652191,-440.0,0.00019452,2]
[364492754,1749120652200,-440.0,0.00019452,2]
[364492756,1749120652209,-601.0,0.00019604,2]
[364492758,1749120652219,-440.0,0.00019726,2]
[364492760,1749120652229,-440.0,0.00019726,2]
[364492762,1749120652238,-440.0,0.0002,2]
[364492764,1749120652248,-440.0,0.0002,2]
[364492766,1749120652257,-440.0,0.00020273,2]
[364492768,1749120652267,-440.0,0.00020273,2]
[364492770,1749120652276,-440.0,0.00020547,2]
[364492772,1749120652286,-440.0,0.00020547,2]
[364492774,1749120652295,-440.0,0.00020821,2]
[364492776,1749120652306,-440.0,0.00020821,2]
[364492778,1749120652315,-222.89133493,0.00021095,2]
[364492780,1749120652326,-217.10866507,0.00021095,2]
[364492782,1749120652335,-208.12,0.00021095,2]
[364492784,1749120652345,-440.0,0.00021369,2]
[364492786,1749120652354,-64.73235773,0.00021643,2]
[364492788,1749120652365,-375.26764227,0.00021643,2]
[364492790,1749120652375,-1691.28465229,0.0002169,2]
[364492792,1749120652385,-3000.0,0.000217,2]
[364492794,1749120652396,-2699.98,0.000217,2]
[364492796,1749120652405,-3957.36,0.000217,2]
[364492798,1749120652415,-3000.0,0.0002171,2]
[364492800,1749120652424,-3000.0,0.0002172,2]
[364492802,1749120652433,-3000.0,0.0002173,2]
[364492804,1749120652442,-3892.81875,0.0002174,2]
[364492806,1749120652451,-1841.71774051,0.00021762,5]
[364492807,1749120652460,-151.0,0.000218,3]
[364492809,1749120652470,-215.0738,0.00021879,2]
[364492811,1749120652479,-160.00079428,0.0002189,2]
[364492813,1749120652489,-24997.58,0.000219,2]
[364492815,1749120652498,-521.35746861,0.00021912,2]
[364492824,1749120652507,-2619.24,0.00021916,2]
[364492826,1749120652584,-907.14,0.00021916,2]
[364492828,1749120652594,-372.675742,0.00021917,2]
[364492830,1749120652603,-440.0,0.00021917,2]
[364492832,1749120652613,-440.0,0.00021917,2]
[364492834,1749120652622,-440.0,0.00021917,2]
[364492836,1749120652633,-440.0,0.00021917,2]
[364492838,1749120652642,-521.09817817,0.00021917,2]
[364492840,1749120652654,-440.0,0.00021917,2]
[364492842,1749120652663,-2371.35,0.00021917,2]
[364492843,1749120652673,-440.0,0.00021917,2]
[364492845,1749120652683,-515.48,0.00021917,2]
[364492847,1749120652692,-440.0,0.00021917,2]
[364492849,1749120652702,-440.0,0.00021917,2]
[364492851,1749120652711,-440.0,0.00021917,2]
[364492853,1749120652720,-449.69,0.00021917,2]
[364492855,1749120652730,-440.0,0.00021917,2]
[364492857,1749120652740,-2621.04,0.00021917,2]
[364492859,1749120652749,-440.0,0.00021917,2]
[364492861,1749120652759,-563.4,0.00021917,2]
[364492863,1749120652768,-1603.39,0.00021917,2]
[364492865,1749120652778,-440.0,0.00021917,2]
[364492867,1749120652787,-1735.19,0.00021917,2]
[364492869,1749120652796,-440.0,0.00021917,2]
[364492871,1749120652805,-609.58,0.00021917,2]
[364492873,1749120652815,-1074.21,0.00021917,2]
[364492875,1749120652825,-440.0,0.00021917,2]
[364492877,1749120652834,-583.66,0.00021917,2]
[364492879,1749120652844,-1078.73,0.00021917,2]
[364492880,1749120652853,-440.0,0.00021917,2]
[364492882,1749120652862,-554.16392308,0.00021917,2]
[364492884,1749120652871,-440.0,0.00021917,2]
[364492886,1749120652881,-948.08,0.00021917,2]
[364492888,1749120652890,-440.0,0.00021917,2]
[364492890,1749120652899,-807.25,0.00021917,2]
[364492892,1749120652909,-440.0,0.00021917,2]
[364492894,1749120652918,-454.64,0.00021917,2]
[364492896,1749120652928,-1149.08,0.00021917,2]
[364492898,1749120652937,-440.0,0.00021917,2]
[364492900,1749120652946,-631.36,0.00021917,2]
[364492902,1749120652955,-1087.02,0.00021917,2]
[364492904,1749120652965,-2091.84,0.00021917,2]
[364492906,1749120652974,-440.0,0.00021917,2]
[364492908,1749120652983,-1507.63,0.00021917,2]
[364492910,1749120652992,-440.0,0.00021917,2]
[364492911,1749120653002,-440.0,0.00021917,2]
[364492913,1749120653013,-440.0,0.00021917,2]
[364492915,1749120653023,-440.0,0.00021917,2]
[364492917,1749120653032,-503.2118004,0.00021973,2]
[364492919,1749120653041,-500.27058007,0.00021973,2]
[364492921,1749120653050,-70353.84792666,0.00021978,2]
[364492923,1749120653059,-151.0,0.00021999,7]
[364492925,1749120653069,-200.454904,0.00021999,7]
[364492927,1749120653078,-200.454904,0.00021999,7]
[364492929,1749120653088,-1000.0,0.00022,22]
[364492931,1749120653098,-28148.98883479,0.00022,2]
[364492933,1749120653107,-7571.03685873,0.00022,2]
[364492935,1749120653116,-1100.97469206,0.00022,30]
[364492938,1749120653136,-152.084027,0.00022,7]
[364492941,1749120653152,-372.675742,0.00022,7]
[364492944,1749120653169,-151.0,0.00022,7]
[364492946,1749120653188,-10000.0,0.00022,15]
[364492949,1749120653205,-200.454904,0.00022,7]
[364492952,1749120653225,-200.454904,0.00022,7]
[364492954,1749120653240,-234.0,0.00022,2]
[364492957,1749120653259,-1841.71774051,0.00022003,6]
[364492959,1749120653273,-60673.35119249,0.00022018,2]
[364492962,1749120653287,-160.00079428,0.00022055,2]
[364492964,1749120653306,-935.25554075,0.000221,2]
[364492967,1749120653324,-1500.0,0.00022137,2]
[364492970,1749120653343,-500.0,0.00022173,2]
[364492972,1749120653355,-2619.24,0.0002219,2]
[364492975,1749120653369,-907.14,0.0002219,2]
[364492977,1749120653386,-440.0,0.00022191,2]
[364492979,1749120653399,-440.0,0.00022191,2]
[364492982,1749120653414,-440.0,0.00022191,2]
[364492984,1749120653426,-440.0,0.00022191,2]
[364492987,1749120653439,-440.0,0.00022191,2]
[364492989,1749120653453,-2371.35,0.00022191,2]
[364492991,1749120653466,-440.0,0.00022191,2]
[364492994,1749120653480,-515.48,0.00022191,2]
[364492996,1749120653493,-440.0,0.00022191,2]
[364492998,1749120653507,-440.0,0.00022191,2]
[364493001,1749120653521,-440.0,0.00022191,2]
[364493003,1749120653534,-449.69,0.00022191,2]
[364493006,1749120653548,-440.0,0.00022191,2]
[364493008,1749120653562,-2621.04,0.00022191,2]
[364493010,1749120653575,-440.0,0.00022191,2]
[364493013,1749120653588,-563.4,0.00022191,2]
[364493015,1749120653602,-1603.39,0.00022191,2]
[364493017,1749120653615,-515.86830295,0.00022191,2]
[364493019,1749120653625,-1735.19,0.00022191,2]
[364493021,1749120653634,-440.0,0.00022191,2]
[364493023,1749120653644,-609.58,0.00022191,2]
[364493025,1749120653654,-1074.21,0.00022191,2]
[364493027,1749120653663,-440.0,0.00022191,2]
[364493029,1749120653672,-583.66,0.00022191,2]
[364493031,1749120653682,-1078.73,0.00022191,2]
[364493033,1749120653691,-440.0,0.00022191,2]
[364493035,1749120653700,-440.0,0.00022191,2]
[364493037,1749120653709,-948.08,0.00022191,2]
[364493039,1749120653719,-440.0,0.00022191,2]
[364493041,1749120653728,-807.25,0.00022191,2]
[364493043,1749120653737,-440.0,0.00022191,2]
[364493045,1749120653746,-454.64,0.00022191,2]
[364493047,1749120653756,-1149.08,0.00022191,2]
[364493048,1749120653766,-440.0,0.00022191,2]
[364493049,1749120653775,-631.36,0.00022191,2]
[364493050,1749120653784,-1087.02,0.00022191,2]
[364493051,1749120653793,-2091.84,0.00022191,2]
[364493052,1749120653802,-440.0,0.00022191,2]
[364493053,1749120653812,-1507.63,0.00022191,2]
[364493054,1749120653820,-440.0,0.00022191,2]
[364493055,1749120653830,-440.0,0.00022191,2]
[364493056,1749120653839,-440.0,0.00022191,2]
[364493057,1749120653848,-440.0,0.00022191,2]
[364493064,1749120654048,-234.0,0.00022192,7]
[364493066,1749120654065,-160.00079428,0.00022192,2]
[364493068,1749120654076,-157.76505856,0.00022194,2]
[364493070,1749120654085,-372.675742,0.000222,7]
[364493072,1749120654094,-372.675742,0.000222,7]
[364493074,1749120654103,-372.67575,0.000222,7]
[364493076,1749120654111,-151.0,0.000222,7]
[364493078,1749120654120,-151.0,0.000222,7]
[364493080,1749120654130,-200.454904,0.000222,7]
[364493082,1749120654139,-200.454904,0.000222,7]
[364493084,1749120654148,-200.454904,0.000222,7]
[364493086,1749120654158,-200.454906,0.000222,7]
[364493088,1749120654167,-1841.71774051,0.00022245,6]
[364493090,1749120654176,-882.55780256,0.00022247,2]
[364493092,1749120654185,-900.0,0.0002226,2]
[364493094,1749120654194,-160.00079428,0.00022329,2]
[364493096,1749120654204,-935.25554074,0.00022329,2]
[364493098,1749120654213,-502.69008618,0.0002238,2]
[364493100,1749120654222,-2619.24,0.00022464,2]
[364493102,1749120654231,-907.14,0.00022464,2]
[364493104,1749120654240,-440.0,0.00022465,2]
[364493106,1749120654250,-440.0,0.00022465,2]
[364493108,1749120654259,-440.0,0.00022465,2]
[364493110,1749120654269,-440.0,0.00022465,2]
[364493112,1749120654278,-2371.35,0.00022465,2]
[364493113,1749120654287,-440.0,0.00022465,2]
[364493115,1749120654296,-515.48,0.00022465,2]
[364493117,1749120654308,-440.0,0.00022465,2]
[364493119,1749120654318,-440.0,0.00022465,2]
[364493121,1749120654327,-440.0,0.00022465,2]
[364493123,1749120654337,-449.69,0.00022465,2]
[364493125,1749120654348,-440.0,0.00022465,2]
[364493127,1749120654357,-2621.04,0.00022465,2]
[364493129,1749120654366,-440.0,0.00022465,2]
[364493131,1749120654375,-563.4,0.00022465,2]
[364493133,1749120654387,-1603.39,0.00022465,2]
[364493135,1749120654397,-1735.19,0.00022465,2]
[364493137,1749120654406,-440.0,0.00022465,2]
[364493139,1749120654416,-609.58,0.00022465,2]
[364493141,1749120654425,-1074.21,0.00022465,2]
[364493143,1749120654434,-440.0,0.00022465,2]
[364493145,1749120654443,-583.66,0.00022465,2]
[364493147,1749120654453,-1078.73,0.00022465,2]
[364493149,1749120654462,-440.0,0.00022465,2]
[364493151,1749120654471,-440.0,0.00022465,2]
[364493153,1749120654480,-948.08,0.00022465,2]
[364493155,1749120654490,-807.25,0.00022465,2]
[364493156,1749120654499,-440.0,0.00022465,2]
[364493158,1749120654508,-454.64,0.00022465,2]
[364493160,1749120654517,-1149.08,0.00022465,2]
[364493162,1749120654527,-440.0,0.00022465,2]
[364493164,1749120654536,-631.36,0.00022465,2]
[364493166,1749120654545,-1087.02,0.00022465,2]
[364493168,1749120654554,-2091.84,0.00022465,2]
[364493170,1749120654563,-440.0,0.00022465,2]
[364493172,1749120654572,-1507.63,0.00022465,2]
[364493174,1749120654582,-440.0,0.00022465,2]
[364493176,1749120654592,-440.0,0.00022465,2]
[364493178,1749120654601,-440.0,0.00022465,2]
[364493180,1749120654610,-440.0,0.00022465,2]
[364493182,1749120654619,-160.00079428,0.00022466,2]
[364493184,1749120654628,-1841.71774051,0.00022486,7]
[364493186,1749120654637,-1000.33476698,0.000225,2]
[364493188,1749120654646,-935.25554074,0.00022558,2]
[364493190,1749120654655,-160.00079428,0.0002263,2]
[364493192,1749120654664,-1473.91752795,0.00022685,2]
[364493194,1749120654673,-1044.13437313,0.00022695,2]